fUST/lending_fUST_20240727
["ID","MTS","AMOUNT","RATE_DAILY","PERIOD"]
[333379374,1722083449748,-876.2,0.00014246,2]
[333379375,1722083449759,-902.43,0.00014246,2]
[333379376,1722083449769,-1846.36,0.00014246,2]
[333379377,1722083449780,-4556.98,0.00014246,2]
[333379378,1722083449792,-500.0,0.00014246,2]
[333379379,1722083449803,-896.75270194,0.00014246,2]
[333379380,1722083487839,191.47619051,9.972e-05,2]
[333379381,1722083534885,273.37336231,9.9e-05,2]
[333379382,1722083543396,273.37336231,9.9e-05,2]
[333379383,1722083552912,273.37336231,9.9e-05,2]
[333379384,1722083560846,273.37336231,9.9e-05,2]
[333379385,1722083563194,200.0,0.0001,2]
[333379386,1722083563654,19451.22782408,9.972e-05,2]
[333379387,1722083569063,273.37336231,9.9e-05,2]
[333379388,1722083574623,16276.9865334,9.972e-05,2]
[333379389,1722083577055,273.37336231,9.9e-05,2]
[333379390,1722083579154,1625.88982265,9.9e-05,2]
[333379391,1722083581826,154.79103211,9.9e-05,2]
[333379392,1722083583265,154.79103211,9.9e-05,2]
[333379393,1722083585205,5115.01485394,9.9e-05,2]
[333379394,1722083585260,154.79103211,9.801e-05,2]
[333379395,1722083586437,4709.49433077,9.9e-05,2]
[333379396,1722083590476,2107.09834524,9.9e-05,2]
[333379397,1722083593785,154.89283953,9.9e-05,2]
[333379398,1722083593825,273.37336231,9.9e-05,2]
[333379399,1722083602595,273.37336231,9.9e-05,2]
[333379400,1722083603051,3782.59755445,9.9e-05,2]
[333379401,1722083604848,218.17416967,9.9e-05,2]
[333379402,1722083609531,727.02832733,9.999e-05,2]
[333379403,1722083610491,727.02832733,9.899e-05,2]
[333379404,1722083618368,154.65203293,9.9e-05,2]
[333379405,1722083619231,273.37336231,9.9e-05,2]
[333379406,1722083621872,319.37459379,9.999e-05,2]
[333379407,1722083628328,273.37336231,9.9e-05,2]
[333379408,1722083634335,200.0,0.0001,2]
[333379409,1722083636501,273.37336231,9.9e-05,2]
[333379410,1722083644458,273.37336231,9.9e-05,2]
[333379411,1722083653474,273.37336231,9.9e-05,2]
[333379412,1722083659661,19451.22782408,9.9e-05,2]
[333379413,1722083661393,273.37336231,9.9e-05,2]
[333379414,1722083670181,273.37336231,9.9e-05,2]
[333379415,1722083671431,2732.07851955,9.9e-05,2]
[333379416,1722083678259,273.37336231,9.9e-05,2]
[333379417,1722083687193,273.37336231,9.9e-05,2]
[333379418,1722083689640,1740.28695724,9.9e-05,2]
[333379419,1722083692474,200.0,0.0001,2]
[333379420,1722083694992,273.37336231,9.9e-05,2]
[333379421,1722083703257,273.37336231,9.9e-05,2]
[333379422,1722083711781,273.37336231,9.9e-05,2]
[333379423,1722083719887,273.37336231,9.9e-05,2]
[333379424,1722083729110,273.37336231,9.9e-05,2]
[333379425,1722083733369,154.77552609,9.9e-05,2]
[333379426,1722083737410,273.37336231,9.9e-05,2]
[333379427,1722083743669,6261.25379807,9.9e-05,2]
[333379428,1722083745968,273.37336231,9.9e-05,2]
[333379429,1722083754406,273.37336231,9.9e-05,2]
[333379430,1722083762316,273.37336231,9.9e-05,2]
[333379431,1722083770812,273.37336231,9.9e-05,2]
[333379432,1722083774594,200.0,0.0001,2]
[333379433,1722083779143,273.37336231,9.9e-05,2]
[333379434,1722083787323,273.37336231,9.9e-05,2]
[333379435,1722083795286,273.37336231,9.9e-05,2]
[333379436,1722083803408,273.37336231,9.9e-05,2]
[333379437,1722083811327,273.37336231,9.9e-05,2]
[333379439,1722083843376,200.0,0.0001,2]
[333379440,1722083912370,200.0,0.0001,2]
[333379442,1722083982622,200.0,0.0001,2]
[333379443,1722084037472,154.71376717,9.999e-05,2]
[333379444,1722084043361,200.0,0.0001,2]
[333379447,1722084107086,200.0,0.0001,2]
[333379450,1722084172468,200.0,0.0001,2]
[333379451,1722084340147,-211.37,0.00010959,2]
[333379452,1722084340172,-176.14,0.00010959,2]
[333379453,1722084340196,-105.96184599,0.00010959,2]
[333379456,1722084556112,-339.85060197,0.00011748,2]
[333379457,1722084557536,331.83,0.00010959,2]
[333379458,1722084561103,-442.96,0.00010959,2]
[333379459,1722084561126,-246.77081487,0.00011748,2]
[333379461,1722084570157,-6252.76368786,0.00011748,2]
[333379462,1722084570181,-409.8209931,0.00011811,2]
[333379463,1722084570211,-233.4048803,0.0001189,2]
[333379464,1722084570235,-300.0,0.00012086,2]
[333379465,1722084570256,-16306.6516378,0.00012087,2]
[333379466,1722084570278,-154.78632197,0.00012119,2]
[333379495,1722084631739,-250.0,0.000125,2]
[333379497,1722084631749,-206.7714858,0.00013,2]
[333379499,1722084631758,-174.857588,0.00013425,2]
[333379501,1722084631768,-2271.5891897,0.00013488,2]
[333379503,1722084631778,-150.83359324,0.000135,2]
[333379505,1722084631788,-150.83359321,0.00013525,2]
[333379507,1722084631797,-150.83359321,0.00013549,2]
[333379509,1722084631807,-150.83359321,0.00013574,2]
[333379511,1722084631817,-300.0,0.00013587,2]
[333379513,1722084631827,-300.0,0.00013587,2]
[333379515,1722084631836,-7893.90130463,0.00013588,2]
[333379557,1722084637893,-59384.19083967,0.00013588,2]
[333379559,1722084637903,-583.25604818,0.00013588,2]
[333379561,1722084637912,-150.83359321,0.00013598,2]
[333379563,1722084637923,-200.0,0.00013598,2]
[333379566,1722084637933,-88888.0,0.00013598,2]
[333379568,1722084637943,-150.112233,0.000136,2]
[333379570,1722084637954,-150.112233,0.000136,2]
[333379572,1722084637964,-67278.0921443,0.00013688,2]
[333379574,1722084637975,-201834.276433,0.00013688,2]
[333379576,1722084637985,-30401.55740619,0.00013698,5]
[333379578,1722084637995,-500.0,0.00013698,2]
[333379580,1722084638005,-801.91,0.00013698,2]
[333379582,1722084638017,-801.91,0.00013698,2]
[333379585,1722084638030,-801.91,0.00013698,2]
[333379587,1722084638039,-801.91,0.00013698,2]
[333379589,1722084638049,-801.91,0.00013698,2]
[333379591,1722084638065,-801.91,0.00013698,2]
[333379593,1722084638074,-801.91,0.00013698,2]
[333379595,1722084638084,-801.91,0.00013698,2]
[333379597,1722084638093,-801.91,0.00013698,2]
[333379599,1722084638103,-801.91,0.00013698,2]
[333379601,1722084638114,-801.91,0.00013698,2]
[333379603,1722084638125,-801.91,0.00013698,2]
[333379605,1722084638135,-801.91,0.00013698,2]
[333379607,1722084638145,-801.91,0.00013698,2]
[333379609,1722084638154,-801.91,0.00013698,2]
[333379611,1722084638164,-801.91,0.00013698,2]
[333379613,1722084638174,-801.91,0.00013698,2]
[333379615,1722084638185,-801.91,0.00013698,2]
[333379617,1722084638194,-801.91,0.00013698,2]
[333379619,1722084638204,-801.91,0.00013698,2]
[333379621,1722084638214,-801.91,0.00013698,2]
[333379623,1722084638225,-801.91,0.00013698,2]
[333379625,1722084638234,-801.91,0.00013698,2]
[333379628,1722084638246,-802.05504635,0.00013698,2]
[333379630,1722084638256,-500.22635326,0.00013698,2]
[333379632,1722084638267,-500.0,0.00013698,2]
[333379634,1722084638281,-501.99856816,0.00013698,2]
[333379636,1722084638292,-500.0,0.00013698,2]
[333379638,1722084638303,-743.81,0.00013698,2]
[333379640,1722084638313,-743.81,0.00013698,2]
[333379642,1722084638324,-743.81,0.00013698,2]
[333379644,1722084638334,-743.81,0.00013698,2]
[333379646,1722084638345,-743.81,0.00013698,2]
[333379648,1722084638356,-743.81,0.00013698,2]
[333379650,1722084638367,-743.81,0.00013698,2]
[333379652,1722084638377,-501.20994446,0.00013698,2]
[333379654,1722084638387,-743.81,0.00013698,2]
[333379656,1722084638396,-743.81,0.00013698,2]
[333379658,1722084638406,-743.81,0.00013698,2]
[333379660,1722084638415,-743.81,0.00013698,2]
[333379662,1722084638425,-743.81,0.00013698,2]
[333379664,1722084638434,-743.81,0.00013698,2]
[333379666,1722084638444,-743.81,0.00013698,2]
[333379668,1722084638454,-743.81,0.00013698,2]
[333379670,1722084638463,-743.81,0.00013698,2]
[333379672,1722084638473,-743.81,0.00013698,2]
[333379673,1722084638482,-743.81,0.00013698,2]
[333379674,1722084638491,-743.81,0.00013698,2]
[333379675,1722084638500,-743.81,0.00013698,2]
[333379676,1722084638509,-743.81,0.00013698,2]
[333379677,1722084638519,-500.0,0.00013698,2]
[333379678,1722084638529,-743.81,0.00013698,2]
[333379679,1722084638538,-743.81,0.00013698,2]
[333379680,1722084638547,-743.98728568,0.00013698,2]
[333379681,1722084638557,-500.0,0.00013698,2]
[333379682,1722084638566,-500.0,0.00013698,2]
[333379683,1722084638575,-500.0,0.00013698,2]
[333379684,1722084638584,-500.0,0.00013698,2]
[333379685,1722084638593,-500.0,0.00013698,2]
[333379686,1722084638602,-500.0,0.00013698,2]
[333379687,1722084638613,-500.0,0.00013698,2]
[333379688,1722084638623,-500.0,0.00013698,2]
[333379689,1722084638633,-500.0,0.00013698,2]
[333379690,1722084638644,-500.0,0.00013698,2]
[333379691,1722084638656,-500.0,0.00013698,2]
[333379692,1722084638667,-500.0,0.00013698,2]
[333379693,1722084638677,-500.0,0.00013698,2]
[333379695,1722084638687,-500.0,0.00013698,2]
[333379697,1722084638696,-515.00000001,0.00013698,2]
[333379699,1722084638707,-500.0,0.00013698,2]
[333379701,1722084638716,-500.0,0.00013698,2]
[333379703,1722084638726,-500.0,0.00013698,2]
[333379705,1722084638736,-500.0,0.00013698,2]
[333379707,1722084638747,-500.0,0.00013698,2]
[333379709,1722084638756,-500.0,0.00013698,2]
[333379711,1722084638766,-500.0,0.00013698,2]
[333379713,1722084638777,-500.0,0.00013698,2]
[333379715,1722084638787,-500.0,0.00013698,2]
[333379718,1722084638797,-500.0,0.00013698,2]
[333379720,1722084638808,-888.16,0.00013698,2]
[333379722,1722084638818,-500.0,0.00013698,2]
[333379724,1722084638827,-500.0,0.00013698,2]
[333379726,1722084638837,-500.0,0.00013698,2]
[333379728,1722084638846,-500.0,0.00013698,2]
[333379730,1722084638857,-500.0,0.00013698,2]
[333379732,1722084638867,-500.0,0.00013698,2]
[333379734,1722084638876,-500.0,0.00013698,2]
[333379736,1722084638886,-500.0,0.00013698,2]
[333379738,1722084638896,-500.0,0.00013698,2]
[333379740,1722084638905,-500.0,0.00013698,2]
[333379742,1722084638915,-500.0,0.00013698,2]
[333379744,1722084638924,-500.0,0.00013698,2]
[333379746,1722084638934,-440.54186579,0.00013698,2]
[333379748,1722084638944,-500.0,0.00013698,2]
[333379750,1722084638954,-572.01,0.00013698,2]
[333379752,1722084638964,-553.17,0.00013698,2]
[333379754,1722084638974,-500.0,0.00013698,2]
[333379756,1722084638984,-500.0,0.00013698,2]
[333379758,1722084638994,-500.0,0.00013698,2]
[333379760,1722084639004,-500.0,0.00013698,2]
[333379762,1722084639014,-675.26,0.00013698,2]
[333379764,1722084639024,-500.0,0.00013698,2]
[333379766,1722084639034,-500.0,0.00013698,2]
[333379768,1722084639044,-686.53,0.00013698,2]
[333379770,1722084639054,-516.79,0.00013698,2]
[333379772,1722084639068,-500.0,0.00013698,2]
[333379774,1722084639077,-500.0,0.00013698,2]
[333379776,1722084639086,-827.22,0.00013698,2]
[333379778,1722084639096,-800.35,0.00013698,2]
[333379780,1722084639107,-500.0,0.00013698,2]
[333379782,1722084639117,-500.0,0.00013698,2]
[333379784,1722084639126,-500.0,0.00013698,2]
[333379786,1722084639137,-500.0,0.00013698,2]
[333379788,1722084639146,-500.0,0.00013698,2]
[333379790,1722084639156,-500.0,0.00013698,2]
[333379792,1722084639166,-500.0,0.00013698,2]
[333379794,1722084639176,-500.0,0.00013698,2]
[333379796,1722084639186,-500.0,0.00013698,2]
[333379799,1722084639197,-500.0,0.00013698,2]
[333379801,1722084639207,-500.0,0.00013698,2]
[333379803,1722084639218,-500.0,0.00013698,2]
[333379805,1722084639228,-500.0,0.00013698,2]
[333379807,1722084639238,-500.0,0.00013698,2]
[333379809,1722084639248,-500.0,0.00013698,2]
[333379811,1722084639260,-500.0,0.00013698,2]
[333379813,1722084639270,-500.0,0.00013698,2]
[333379815,1722084639280,-730.73,0.00013698,2]
[333379817,1722084639289,-150.0,0.00013698,2]
[333379819,1722084639299,-500.90753046,0.00013698,2]
[333379821,1722084639309,-503.79320357,0.00013698,2]
[333379823,1722084639320,-500.0,0.00013698,2]
[333379825,1722084639330,-500.0,0.00013698,2]
[333379827,1722084639341,-500.0,0.00013698,2]
[333379829,1722084639352,-3295.96,0.00013698,2]
[333379831,1722084639362,-419.96502977,0.00013698,2]
[333379849,1722084639523,-724.48,0.00013698,2]
[333379851,1722084639534,-500.0,0.00013698,2]
[333379854,1722084639545,-826.81,0.00013698,2]
[333379856,1722084639554,-500.0,0.00013698,2]
[333379857,1722084639564,-500.0,0.00013698,2]
[333379860,1722084639574,-500.0,0.00013698,2]
[333379862,1722084639584,-619.38123641,0.00013698,2]
[333379864,1722084639594,-1493.96,0.00013698,2]
[333379866,1722084639604,-500.0,0.00013698,2]
[333379868,1722084639614,-5805.96,0.00013698,2]
[333379870,1722084639623,-1067.32,0.00013698,2]
[333379872,1722084639633,-500.0,0.00013698,2]
[333379874,1722084639642,-571.3,0.00013698,2]
[333379876,1722084639651,-2463.82,0.00013698,2]
[333379878,1722084639661,-500.0,0.00013698,2]
[333379880,1722084639671,-813.63,0.00013698,2]
[333379882,1722084639682,-500.0,0.00013698,2]
[333379884,1722084639695,-1102.88,0.00013698,2]
[333379886,1722084639705,-1737.32,0.00013698,2]
[333379888,1722084639715,-500.0,0.00013698,2]
[333379890,1722084639724,-547.73,0.00013698,2]
[333379892,1722084639734,-1223.18,0.00013698,2]
[333379894,1722084639744,-1071.35,0.00013698,2]
[333379896,1722084639756,-500.0,0.00013698,2]
[333379898,1722084639765,-500.0,0.00013698,2]
[333379900,1722084639775,-631.29,0.00013698,2]
[333379902,1722084639785,-500.0,0.00013698,2]
[333379904,1722084639794,-500.0,0.00013698,2]
[333379906,1722084639804,-500.0,0.00013698,2]
[333379908,1722084639813,-500.0,0.00013698,2]
[333379910,1722084639823,-500.0,0.00013698,2]
[333379912,1722084639833,-986.24,0.00013698,2]
[333379914,1722084639843,-547.72,0.00013698,2]
[333379916,1722084639854,-1014.86,0.00013698,2]
[333379918,1722084639864,-500.0,0.00013698,2]
[333379920,1722084639874,-500.0,0.00013698,2]
[333379922,1722084639884,-803.18,0.00013698,2]
[333379924,1722084639893,-522.84,0.00013698,2]
[333379926,1722084639903,-500.0,0.00013698,2]
[333379928,1722084639913,-500.0,0.00013698,2]
[333379930,1722084639923,-500.0,0.00013698,2]
[333379932,1722084639932,-1692.5,0.00013698,2]
[333379934,1722084639942,-191.54529551,0.00013698,2]
[333379936,1722084639951,-500.0,0.00013698,2]
[333379938,1722084639961,-4177.23,0.00013698,2]
[333379940,1722084639971,-2421.58,0.00013698,2]
[333379942,1722084639980,-500.0,0.00013698,2]
[333379944,1722084639989,-769.41,0.00013698,2]
[333379946,1722084639998,-500.0,0.00013698,2]
[333379948,1722084640008,-500.73041792,0.00013698,2]
[333379950,1722084640018,-843.46,0.00013698,2]
[333379952,1722084640027,-500.0,0.00013698,2]
[333379954,1722084640037,-500.0,0.00013698,2]
[333379956,1722084640047,-573.24,0.00013698,2]
[333379958,1722084640058,-500.0,0.00013698,2]
[333379960,1722084640068,-500.0,0.00013698,2]
[333379962,1722084640077,-500.0,0.00013698,2]
[333379964,1722084640087,-777.45,0.00013698,2]
[333379966,1722084640097,-500.0,0.00013698,2]
[333379968,1722084640107,-898.06,0.00013698,2]
[333379970,1722084640117,-500.0,0.00013698,2]
[333379972,1722084640127,-500.0,0.00013698,2]
[333379974,1722084640137,-203.18865096,0.00013698,2]
[333379976,1722084640148,-500.0,0.00013698,2]
[333379978,1722084640157,-901.6,0.00013698,2]
[333379980,1722084640168,-500.0,0.00013698,2]
[333379982,1722084640178,-500.0,0.00013698,2]
[333379984,1722084640187,-883.86,0.00013698,2]
[333379986,1722084640197,-500.0,0.00013698,2]
[333379988,1722084640207,-500.0,0.00013698,2]
[333379990,1722084640216,-501.469138,0.00013698,2]
[333379992,1722084640226,-500.0,0.00013698,2]
[333379994,1722084640235,-500.0,0.00013698,2]
[333379996,1722084640245,-500.0,0.00013698,2]
[333379998,1722084640255,-1263.27,0.00013698,2]
[333380000,1722084640264,-1026.37,0.00013698,2]
[333380002,1722084640274,-584.13,0.00013698,2]
[333380004,1722084640285,-500.0,0.00013698,2]
[333380006,1722084640295,-500.0,0.00013698,2]
[333380008,1722084640304,-1195.88,0.00013698,2]
[333380010,1722084640314,-500.0,0.00013698,2]
[333380012,1722084640324,-500.0,0.00013698,2]
[333380014,1722084640334,-500.0,0.00013698,2]
[333380016,1722084640343,-500.0,0.00013698,2]
[333380018,1722084640353,-2192.08,0.00013698,2]
[333380020,1722084640364,-502.02012757,0.00013698,2]
[333380022,1722084640374,-580.93,0.00013698,2]
[333380024,1722084640383,-500.0,0.00013698,2]
[333380026,1722084640393,-500.0,0.00013698,2]
[333380028,1722084640402,-500.0,0.00013698,2]
[333380030,1722084640412,-1743.93,0.00013698,2]
[333380032,1722084640422,-500.0,0.00013698,2]
[333380035,1722084640433,-500.0,0.00013698,2]
[333380037,1722084640443,-500.0,0.00013698,2]
[333380039,1722084640453,-574.78352115,0.00013698,2]
[333380041,1722084640462,-500.0,0.00013698,2]
[333380043,1722084640472,-500.0,0.00013698,2]
[333380045,1722084640481,-500.0,0.00013698,2]
[333380047,1722084640491,-500.0,0.00013698,2]
[333380049,1722084640501,-500.0,0.00013698,2]
[333380051,1722084640511,-500.0,0.00013698,2]
[333380053,1722084640520,-500.0,0.00013698,2]
[333380055,1722084640530,-500.0,0.00013698,2]
[333380057,1722084640540,-484.46602916,0.00013698,2]
[333380059,1722084640550,-500.0,0.00013698,2]
[333380061,1722084640559,-500.0,0.00013698,2]
[333380063,1722084640570,-1133.43,0.00013698,2]
[333380065,1722084640581,-194.45654901,0.00013699,2]
[333380067,1722084640592,-153.0,0.00013781,2]
[333380069,1722084640602,-153.0,0.00013781,2]
[333380071,1722084640612,-150.112233,0.000139,2]
[333380073,1722084640623,-151.0,0.00013952,2]
[333380076,1722084640635,-168.278438,0.00013952,2]
[333380078,1722084640646,-168.278438,0.00013952,2]
[333380080,1722084640660,-151.0,0.00013952,2]
[333380082,1722084640671,-151.0,0.00013952,2]
[333380084,1722084640681,-624.318645,0.00013952,2]
[333380086,1722084640690,-624.318645,0.00013952,2]
[333380088,1722084640700,-400.703469,0.00013952,2]
[333380090,1722084640709,-400.703469,0.00013952,2]
[333380092,1722084640719,-151.0,0.00013952,2]
[333380094,1722084640730,-151.0,0.00013952,2]
[333380096,1722084640739,-151.0,0.00013952,2]
[333380098,1722084640749,-733.501136,0.00013952,2]
[333380100,1722084640760,-733.501136,0.00013952,2]
[333380102,1722084640771,-151.0,0.00013962,2]
[333380104,1722084640781,-294.475485,0.00013962,2]
[333380106,1722084640791,-360.486407,0.00013962,2]
[333380108,1722084640800,-360.486407,0.00013962,2]
[333380110,1722084640810,-151.0,0.00013962,2]
[333380112,1722084640820,-151.0,0.00013962,2]
[333380114,1722084640829,-151.0,0.00013962,2]
[333380116,1722084640839,-151.0,0.00013962,2]
[333380118,1722084640848,-501.82093202,0.00013972,2]
[333380120,1722084640858,-500.0,0.00013972,2]
[333380122,1722084640868,-500.0,0.00013972,2]
[333380124,1722084640877,-500.0,0.00013972,2]
[333380126,1722084640887,-177.86825912,0.00013972,2]
[333380128,1722084640897,-888.16,0.00013972,2]
[333380130,1722084640907,-500.0,0.00013972,2]
[333380132,1722084640916,-500.0,0.00013972,2]
[333380134,1722084640926,-500.0,0.00013972,2]
[333380136,1722084640935,-500.0,0.00013972,2]
[333380138,1722084640945,-500.0,0.00013972,2]
[333380141,1722084640955,-572.01,0.00013972,2]
[333380143,1722084640965,-553.17,0.00013972,2]
[333380145,1722084640975,-500.0,0.00013972,2]
[333380147,1722084640984,-500.0,0.00013972,2]
[333380149,1722084640994,-500.0,0.00013972,2]
[333380151,1722084641004,-500.0,0.00013972,2]
[333380153,1722084641013,-675.26,0.00013972,2]
[333380155,1722084641022,-686.53,0.00013972,2]
[333380157,1722084641032,-516.79,0.00013972,2]
[333380159,1722084641042,-500.0,0.00013972,2]
[333380161,1722084641053,-333.69468713,0.00013972,2]
[333380163,1722084641067,-827.22,0.00013972,2]
[333380165,1722084641076,-800.35,0.00013972,2]
[333380167,1722084641085,-500.0,0.00013972,2]
[333380169,1722084641101,-500.0,0.00013972,2]
[333380171,1722084641110,-500.0,0.00013972,2]
[333380173,1722084641119,-500.0,0.00013972,2]
[333380175,1722084641128,-500.0,0.00013972,2]
[333380177,1722084641139,-500.0,0.00013972,2]
[333380178,1722084641148,-730.73,0.00013972,2]
[333380180,1722084641157,-500.0,0.00013972,2]
[333380182,1722084641166,-3295.96,0.00013972,2]
[333380184,1722084641175,-724.48,0.00013972,2]
[333380186,1722084641184,-500.0,0.00013972,2]
[333380188,1722084641193,-826.81,0.00013972,2]
[333380190,1722084641203,-500.0,0.00013972,2]
[333380192,1722084641212,-500.0,0.00013972,2]
[333380194,1722084641222,-500.0,0.00013972,2]
[333380196,1722084641231,-1493.96,0.00013972,2]
[333380198,1722084641241,-500.0,0.00013972,2]
[333380200,1722084641250,-5805.96,0.00013972,2]
[333380202,1722084641260,-1067.32,0.00013972,2]
[333380204,1722084641270,-500.0,0.00013972,2]
[333380206,1722084641279,-571.3,0.00013972,2]
[333380208,1722084641290,-2463.82,0.00013972,2]
[333380210,1722084641300,-500.0,0.00013972,2]
[333380213,1722084641310,-813.63,0.00013972,2]
[333380215,1722084641333,-1102.88,0.00013972,2]
[333380218,1722084641344,-1737.32,0.00013972,2]
[333380220,1722084641355,-547.73,0.00013972,2]
[333380222,1722084641366,-1223.18,0.00013972,2]
[333380224,1722084641375,-1071.35,0.00013972,2]
[333380226,1722084641386,-500.0,0.00013972,2]
[333380228,1722084641396,-631.29,0.00013972,2]
[333380230,1722084641406,-500.0,0.00013972,2]
[333380232,1722084641416,-277.60299851,0.00013972,2]
[333380237,1722084641451,-222.39700149,0.00013972,2]
[333380239,1722084641461,-250.81299906,0.00013972,2]
[333380255,1722084641610,-500.0,0.00013698,2]
[333380257,1722084641620,-249.18700094,0.00013972,2]
[333380259,1722084641630,-500.0,0.00013972,2]
[333380261,1722084641640,-986.24,0.00013972,2]
[333380263,1722084641650,-547.72,0.00013972,2]
[333380265,1722084641660,-1014.86,0.00013972,2]
[333380267,1722084641669,-500.0,0.00013972,2]
[333380269,1722084641678,-803.18,0.00013972,2]
[333380271,1722084641688,-522.84,0.00013972,2]
[333380273,1722084641698,-500.0,0.00013972,2]
[333380275,1722084641707,-1692.5,0.00013972,2]
[333380277,1722084641716,-4177.23,0.00013972,2]
[333380279,1722084641726,-2421.58,0.00013972,2]
[333380281,1722084641736,-500.0,0.00013972,2]
[333380283,1722084641746,-769.41,0.00013972,2]
[333380285,1722084641756,-500.0,0.00013972,2]
[333380287,1722084641766,-843.46,0.00013972,2]
[333380289,1722084641776,-573.24,0.00013972,2]
[333380291,1722084641785,-316.333159,0.00013972,2]
[333380293,1722084641795,-777.45,0.00013972,2]
[333380295,1722084641805,-316.333159,0.00013972,2]
[333380297,1722084641815,-898.06,0.00013972,2]
[333380299,1722084641825,-500.0,0.00013972,2]
[333380301,1722084641835,-500.0,0.00013972,2]
[333380303,1722084641845,-901.6,0.00013972,2]
[333380305,1722084641855,-500.0,0.00013972,2]
[333380307,1722084641865,-883.86,0.00013972,2]
[333380309,1722084641874,-151.0,0.00013972,2]
[333380311,1722084641885,-500.0,0.00013972,2]
[333380313,1722084641894,-500.0,0.00013972,2]
[333380315,1722084641905,-1263.27,0.00013972,2]
[333380317,1722084641915,-1026.37,0.00013972,2]
[333380319,1722084641925,-584.13,0.00013972,2]
[333380321,1722084641934,-422.337938,0.00013972,2]
[333380323,1722084641944,-1195.88,0.00013972,2]
[333380325,1722084641953,-500.0,0.00013972,2]
[333380327,1722084641963,-422.337938,0.00013972,2]
[333380329,1722084641973,-500.0,0.00013972,2]
[333380331,1722084641982,-2192.08,0.00013972,2]
[333380333,1722084641992,-580.93,0.00013972,2]
[333380335,1722084642002,-500.0,0.00013972,2]
[333380337,1722084642012,-151.0,0.00013972,2]
[333380339,1722084642021,-151.0,0.00013972,2]
[333380341,1722084642030,-151.0,0.00013972,2]
[333380343,1722084642040,-1743.93,0.00013972,2]
[333380345,1722084642049,-151.0,0.00013972,2]
[333380347,1722084642061,-500.0,0.00013972,2]
[333380349,1722084642071,-151.0,0.00013972,2]
[333380351,1722084642080,-500.0,0.00013972,2]
[333380353,1722084642090,-1133.43,0.00013972,2]
[333380355,1722084642099,-151.0,0.00013972,2]
[333380357,1722084642109,-150.112233,0.00014,2]
[333380359,1722084642119,-2094.06045063,0.00014,2]
[333380361,1722084642128,-247.18420879,0.00014,2]
[333380363,1722084642138,-155.0,0.0001401,2]
[333380365,1722084642151,-360.486407,0.00014021,2]
[333380367,1722084642162,-360.486407,0.00014021,2]
[333380369,1722084642173,-151.0,0.00014021,2]
[333380371,1722084642184,-151.0,0.00014021,2]
[333380373,1722084642194,-151.0,0.00014021,2]
[333380375,1722084642204,-151.0,0.00014021,2]
[333380377,1722084642214,-30000.0,0.00014041,2]
[333380379,1722084642224,-151.0,0.00014041,2]
[333380382,1722084642234,-168.278438,0.00014041,2]
[333380384,1722084642244,-168.278438,0.00014041,2]
[333380386,1722084642254,-151.0,0.00014041,2]
[333380388,1722084642263,-151.0,0.00014041,2]